[Event "Late-Titled-Tuesday-Blitz-September-05-2023"]
[Site "Chess.com"]
[Date "2023.09.05"]
[Round "11"]
[White "jcibarra"]
[Black "pouya21"]
[Result "1/2-1/2"]
[WhiteElo "2904"]
[BlackElo "2810"]
[TimeControl "180+1"]
[EndTime "16:06:05 PDT"]
[Termination "Game drawn - insufficient material"]

1. e4 {[%clk 0:03:00.9]} 1... c5 {[%clk 0:02:55.3]} 2. Nf3 {[%clk 0:03:01.2]}
2... d6 {[%clk 0:02:55.6]} 3. c3 {[%clk 0:03:01.5]} 3... Nf6 {[%clk 0:02:55.3]}
4. h3 {[%clk 0:03:01.9]} 4... g6 {[%clk 0:02:55.7]} 5. Bd3 {[%clk 0:03:02.3]}
5... Bg7 {[%clk 0:02:56.3]} 6. Bc2 {[%clk 0:03:03.1]} 6... O-O {[%clk
0:02:56.8]} 7. O-O {[%clk 0:03:03.3]} 7... Nc6 {[%clk 0:02:57.4]} 8. d4 {[%clk
0:03:04]} 8... cxd4 {[%clk 0:02:58]} 9. cxd4 {[%clk 0:03:04.9]} 9... e5 {[%clk
0:02:58.7]} 10. Nc3 {[%clk 0:03:04.4]} 10... exd4 {[%clk 0:02:53.4]} 11. Nxd4
{[%clk 0:03:04.9]} 11... d5 {[%clk 0:02:52.7]} 12. Nxc6 {[%clk 0:03:03.6]} 12...
bxc6 {[%clk 0:02:53.6]} 13. Bg5 {[%clk 0:03:03.7]} 13... h6 {[%clk 0:02:50.9]}
14. Be3 {[%clk 0:03:03.8]} 14... Nxe4 {[%clk 0:02:31]} 15. Nxe4 {[%clk 0:03:01]}
15... dxe4 {[%clk 0:02:31.9]} 16. Bxe4 {[%clk 0:02:59.1]} 16... Bxb2 {[%clk
0:02:13.8]} 17. Bxh6 {[%clk 0:02:40.8]} 17... Bg7 {[%clk 0:01:47.2]} 18. Bxc6
{[%clk 0:02:38.7]} 18... Qxd1 {[%clk 0:01:43.2]} 19. Raxd1 {[%clk 0:02:37.6]}
19... Rb8 {[%clk 0:01:43.8]} 20. Bf4 {[%clk 0:02:24.4]} 20... Rb6 {[%clk
0:01:43.7]} 21. Bd5 {[%clk 0:02:24.5]} 21... Be6 {[%clk 0:01:42.1]} 22. Be3
{[%clk 0:02:20]} 22... Ra6 {[%clk 0:01:40.2]} 23. Bxe6 {[%clk 0:02:20.2]} 23...
Rxe6 {[%clk 0:01:40]} 24. Rd7 {[%clk 0:02:12.9]} 24... Ra6 {[%clk 0:01:37.7]}
25. a3 {[%clk 0:02:02.6]} 25... Rc8 {[%clk 0:01:20.9]} 26. Rxa7 {[%clk
0:01:54.1]} 26... Rxa7 {[%clk 0:01:20.1]} 27. Bxa7 {[%clk 0:01:55]} 27... Bf8
{[%clk 0:01:20.5]} 28. Ra1 {[%clk 0:01:48.3]} 28... Ra8 {[%clk 0:01:20.3]} 29.
Bd4 {[%clk 0:01:47.4]} 29... Rxa3 {[%clk 0:01:20.2]} 30. Rb1 {[%clk 0:01:28.4]}
30... Bg7 {[%clk 0:01:17.5]} 31. Rb8+ {[%clk 0:01:25.7]} 31... Kh7 {[%clk
0:01:17.5]} 32. Bxg7 {[%clk 0:01:16.8]} 32... Kxg7 {[%clk 0:01:17.3]} 33. Rb5
{[%clk 0:01:17]} 33... f6 {[%clk 0:01:14.9]} 34. Kh2 {[%clk 0:01:16.1]} 34... g5
{[%clk 0:01:15.4]} 35. h4 {[%clk 0:01:02.9]} 35... gxh4 {[%clk 0:01:14.5]} 36.
Rh5 {[%clk 0:01:03.5]} 36... Kg6 {[%clk 0:01:14.7]} 37. Rxh4 {[%clk 0:01:03.5]}
37... Ra2 {[%clk 0:01:15.4]} 38. Kg3 {[%clk 0:01:03.2]} 38... Ra3+ {[%clk
0:01:15.3]} 39. f3 {[%clk 0:01:03.3]} 39... Ra2 {[%clk 0:01:16.2]} 40. Rg4+
{[%clk 0:01:03.4]} 40... Kf7 {[%clk 0:01:16.7]} 41. Kh4 {[%clk 0:01:03.2]} 41...
Ra5 {[%clk 0:01:16.9]} 42. Rc4 {[%clk 0:01:01.8]} 42... Kg6 {[%clk 0:01:17.5]}
43. Rc8 {[%clk 0:00:57.7]} 43... Ra1 {[%clk 0:01:17.7]} 44. Rc5 {[%clk
0:00:53.7]} 44... Rh1+ {[%clk 0:01:17.1]} 45. Kg4 {[%clk 0:00:53.4]} 45... Ra1
{[%clk 0:01:18]} 46. Kh4 {[%clk 0:00:50]} 46... Rh1+ {[%clk 0:01:17.4]} 47. Kg3
{[%clk 0:00:50.6]} 47... Ra1 {[%clk 0:01:18.2]} 48. Kg4 {[%clk 0:00:49.6]} 48...
Ra2 {[%clk 0:01:12.5]} 49. g3 {[%clk 0:00:49.1]} 49... Ra4+ {[%clk 0:01:11]} 50.
f4 {[%clk 0:00:49.2]} 50... Rb4 {[%clk 0:01:11.3]} 51. Ra5 {[%clk 0:00:49.2]}
51... Rc4 {[%clk 0:01:11.4]} 52. Rb5 {[%clk 0:00:49.5]} 52... Ra4 {[%clk
0:01:11.6]} 53. Rb7 {[%clk 0:00:49.7]} 53... Rc4 {[%clk 0:01:10.1]} 54. Rb6
{[%clk 0:00:49.2]} 54... Ra4 {[%clk 0:01:10.2]} 55. Kh4 {[%clk 0:00:48.8]} 55...
Ra1 {[%clk 0:01:08.4]} 56. Kg4 {[%clk 0:00:46.5]} 56... Ra4 {[%clk 0:01:08.3]}
57. Rb1 {[%clk 0:00:46.6]} 57... Rc4 {[%clk 0:01:06.8]} 58. Ra1 {[%clk
0:00:46.7]} 58... Rb4 {[%clk 0:01:06.3]} 59. Rf1 {[%clk 0:00:46.3]} 59... Ra4
{[%clk 0:01:06.4]} 60. Kh4 {[%clk 0:00:46.7]} 60... Rb4 {[%clk 0:01:02.4]} 61.
Rf2 {[%clk 0:00:46]} 61... Rb8 {[%clk 0:00:54.5]} 62. Ra2 {[%clk 0:00:42.7]}
62... Rb4 {[%clk 0:00:53.9]} 63. Ra8 {[%clk 0:00:40.5]} 63... Rc4 {[%clk
0:00:53.5]} 64. Rg8+ {[%clk 0:00:40.9]} 64... Kf7 {[%clk 0:00:52.1]} 65. Rg4
{[%clk 0:00:39.1]} 65... Rc1 {[%clk 0:00:51.4]} 66. Kh3 {[%clk 0:00:34.1]} 66...
Rh1+ {[%clk 0:00:51.1]} 67. Kg2 {[%clk 0:00:34.3]} 67... Ra1 {[%clk 0:00:52]}
68. Rh4 {[%clk 0:00:33.6]} 68... Kg6 {[%clk 0:00:51.8]} 69. Rg4+ {[%clk
0:00:32.7]} 69... Kf7 {[%clk 0:00:51.5]} 70. f5 {[%clk 0:00:29.9]} 70... Ra5
{[%clk 0:00:51.3]} 71. Rf4 {[%clk 0:00:30.3]} 71... Kg7 {[%clk 0:00:51.9]} 72.
Kh3 {[%clk 0:00:30.7]} 72... Kh6 {[%clk 0:00:52]} 73. Kg4 {[%clk 0:00:27.6]}
73... Rb5 {[%clk 0:00:49.3]} 74. Re4 {[%clk 0:00:27.9]} 74... Ra5 {[%clk
0:00:49.3]} 75. Rb4 {[%clk 0:00:28.1]} 75... Rc5 {[%clk 0:00:49.2]} 76. Ra4
{[%clk 0:00:28.6]} 76... Rb5 {[%clk 0:00:49.5]} 77. Rf4 {[%clk 0:00:27.9]} 77...
Rc5 {[%clk 0:00:49.8]} 78. Kh4 {[%clk 0:00:28.6]} 78... Rb5 {[%clk 0:00:47.3]}
79. Kh3 {[%clk 0:00:29]} 79... Kg5 {[%clk 0:00:46.6]} 80. Rh4 {[%clk 0:00:23.9]}
80... Rxf5 {[%clk 0:00:45.4]} 81. Rg4+ {[%clk 0:00:24.3]} 81... Kh6 {[%clk
0:00:45.3]} 82. Rg8 {[%clk 0:00:24.7]} 82... Rg5 {[%clk 0:00:45.4]} 83. Rxg5
{[%clk 0:00:18.3]} 83... Kxg5 {[%clk 0:00:44.4]} 84. Kh2 {[%clk 0:00:18.5]}
84... f5 {[%clk 0:00:45.3]} 85. Kg2 {[%clk 0:00:18.9]} 85... Kg4 {[%clk
0:00:45.9]} 86. Kf2 {[%clk 0:00:19.4]} 86... f4 {[%clk 0:00:46.8]} 87. gxf4
{[%clk 0:00:20.1]} 87... Kxf4 {[%clk 0:00:47.7]} 1/2-1/2

[Event "Late-Titled-Tuesday-Blitz-September-05-2023"]
[Site "Chess.com"]
[Date "2023.09.05"]
[Round "11"]
[White "BillieKimbah"]
[Black "Fandorine"]
[Result "1-0"]
[WhiteElo "3053"]
[BlackElo "2936"]
[TimeControl "180+1"]
[EndTime "16:06:22 PDT"]
[Termination "BillieKimbah won on time"]

1. d4 {[%clk 0:03:00.9]} 1... Nf6 {[%clk 0:02:59.9]} 2. Nf3 {[%clk 0:03:01.6]}
2... g6 {[%clk 0:03:00.2]} 3. g3 {[%clk 0:02:56]} 3... Bg7 {[%clk 0:03:00.9]} 4.
Bg2 {[%clk 0:02:56.2]} 4... O-O {[%clk 0:03:01.7]} 5. O-O {[%clk 0:02:56.6]}
5... d6 {[%clk 0:03:02.2]} 6. Nc3 {[%clk 0:02:56.6]} 6... Nbd7 {[%clk
0:02:57.2]} 7. e4 {[%clk 0:02:55.2]} 7... e5 {[%clk 0:02:57.5]} 8. a4 {[%clk
0:02:53.5]} 8... a5 {[%clk 0:02:53.3]} 9. Re1 {[%clk 0:02:47.7]} 9... Re8 {[%clk
0:02:50.2]} 10. dxe5 {[%clk 0:02:33.3]} 10... dxe5 {[%clk 0:02:47.9]} 11. Nb5
{[%clk 0:02:33.4]} 11... b6 {[%clk 0:02:39.5]} 12. Qe2 {[%clk 0:02:28.9]} 12...
Ba6 {[%clk 0:02:35.3]} 13. Qe3 {[%clk 0:02:10]} 13... Nc5 {[%clk 0:02:15.4]} 14.
Nc3 {[%clk 0:01:58.7]} 14... c6 {[%clk 0:02:03.4]} 15. b3 {[%clk 0:01:52.6]}
15... Qc7 {[%clk 0:01:48.5]} 16. Bb2 {[%clk 0:01:45]} 16... Ne6 {[%clk
0:01:36.8]} 17. h3 {[%clk 0:01:39.7]} 17... h5 {[%clk 0:01:16.6]} 18. Ne2 {[%clk
0:01:38.6]} 18... Nc5 {[%clk 0:01:05.9]} 19. Nc3 {[%clk 0:01:21.9]} 19... Rad8
{[%clk 0:00:53.7]} 20. Rad1 {[%clk 0:01:20.8]} 20... Ne6 {[%clk 0:00:54.4]} 21.
Ne2 {[%clk 0:01:11.3]} 21... Nd7 {[%clk 0:00:43.9]} 22. Rd2 {[%clk 0:00:58.5]}
22... Kh7 {[%clk 0:00:37.5]} 23. h4 {[%clk 0:00:57.5]} 23... f6 {[%clk
0:00:37.7]} 24. Rdd1 {[%clk 0:00:46.5]} 24... Ndc5 {[%clk 0:00:36.2]} 25. Bc1
{[%clk 0:00:44]} 25... Rxd1 {[%clk 0:00:34.4]} 26. Rxd1 {[%clk 0:00:44.9]} 26...
Rd8 {[%clk 0:00:35.1]} 27. Re1 {[%clk 0:00:43.8]} 27... b5 {[%clk 0:00:25.6]}
28. axb5 {[%clk 0:00:37.2]} 28... Bxb5 {[%clk 0:00:26]} 29. Bh3 {[%clk 0:00:34]}
29... Qe7 {[%clk 0:00:19.5]} 30. Nc3 {[%clk 0:00:22.3]} 30... Nd4 {[%clk
0:00:15.4]} 31. Nxb5 {[%clk 0:00:07.6]} 31... cxb5 {[%clk 0:00:16.3]} 32. Nxd4
{[%clk 0:00:07]} 32... exd4 {[%clk 0:00:12.7]} 33. Qf3 {[%clk 0:00:06.3]} 33...
d3 {[%clk 0:00:13.2]} 34. cxd3 {[%clk 0:00:04.9]} 34... Nxd3 {[%clk 0:00:11.2]}
35. Rf1 {[%clk 0:00:05.3]} 35... a4 {[%clk 0:00:04.8]} 36. bxa4 {[%clk
0:00:05.1]} 36... bxa4 {[%clk 0:00:05.7]} 37. Rd1 {[%clk 0:00:03.6]} 37... Ne5
{[%clk 0:00:05.6]} 38. Qe2 {[%clk 0:00:03.9]} 38... Ra8 {[%clk 0:00:03.9]} 39.
Bb2 {[%clk 0:00:03.2]} 39... a3 {[%clk 0:00:03.9]} 40. Ba1 {[%clk 0:00:03.6]}
40... Qc5 {[%clk 0:00:03.6]} 41. Kg2 {[%clk 0:00:02.3]} 41... a2 {[%clk
0:00:04.2]} 42. f4 {[%clk 0:00:02.6]} 42... Nc4 {[%clk 0:00:04.7]} 43. Rd3
{[%clk 0:00:02.3]} 43... Qb5 {[%clk 0:00:04.9]} 44. f5 {[%clk 0:00:02.2]} 44...
Ne5 {[%clk 0:00:03.2]} 45. fxg6+ {[%clk 0:00:02.4]} 45... Kg8 {[%clk 0:00:03.6]}
46. Rd2 {[%clk 0:00:02.6]} 46... Qxe2+ {[%clk 0:00:03.5]} 47. Rxe2 {[%clk
0:00:03.5]} 47... Ng4 {[%clk 0:00:03.9]} 48. Bxg4 {[%clk 0:00:03.7]} 48... hxg4
{[%clk 0:00:04.4]} 49. h5 {[%clk 0:00:04.3]} 49... f5 {[%clk 0:00:04.4]} 50. e5
{[%clk 0:00:04.2]} 50... Re8 {[%clk 0:00:04.8]} 51. Rxa2 {[%clk 0:00:03.4]}
51... Kf8 {[%clk 0:00:02.8]} 52. Ra7 {[%clk 0:00:03.4]} 52... Re7 {[%clk
0:00:02.6]} 53. Ra8+ {[%clk 0:00:03.3]} 53... Re8 {[%clk 0:00:03.1]} 54. Rxe8+
{[%clk 0:00:03.5]} 54... Kxe8 {[%clk 0:00:04]} 55. Bd4 {[%clk 0:00:03.7]} 55...
Ke7 {[%clk 0:00:03.4]} 56. Kf2 {[%clk 0:00:04.1]} 56... Ke6 {[%clk 0:00:03.7]}
57. Ke3 {[%clk 0:00:04.6]} 57... Bh6+ {[%clk 0:00:04.1]} 58. Kd3 {[%clk
0:00:05]} 58... Kd5 {[%clk 0:00:03.5]} 59. Bc3 {[%clk 0:00:04.3]} 59... Bf8
{[%clk 0:00:02.7]} 60. Bd2 {[%clk 0:00:04.3]} 60... Kxe5 {[%clk 0:00:01.8]} 61.
h6 {[%clk 0:00:04.9]} 61... Kf6 {[%clk 0:00:01.5]} 62. g7 {[%clk 0:00:05.4]}
62... Bxg7 {[%clk 0:00:01.9]} 63. Bc3+ {[%clk 0:00:05.4]} 63... Kf7 {[%clk
0:00:02.5]} 64. hxg7 {[%clk 0:00:05.7]} 1-0

[Event "Late-Titled-Tuesday-Blitz-September-05-2023"]
[Site "Chess.com"]
[Date "2023.09.05"]
[Round "11"]
[White "Bauman_Guy"]
[Black "lachesisQ"]
[Result "0-1"]
[WhiteElo "2911"]
[BlackElo "3064"]
[TimeControl "180+1"]
[EndTime "16:06:22 PDT"]
[Termination "lachesisQ won by checkmate"]

1. e4 {[%clk 0:03:00.9]} 1... e6 {[%clk 0:02:58.9]} 2. d4 {[%clk 0:03:00.9]}
2... d5 {[%clk 0:02:59.5]} 3. Nc3 {[%clk 0:03:01.8]} 3... Bb4 {[%clk 0:02:58.8]}
4. e5 {[%clk 0:03:02.2]} 4... Ne7 {[%clk 0:02:58.6]} 5. a3 {[%clk 0:03:02.6]}
5... Bxc3+ {[%clk 0:02:58.7]} 6. bxc3 {[%clk 0:03:03.5]} 6... c5 {[%clk
0:02:59]} 7. Qg4 {[%clk 0:03:03.3]} 7... O-O {[%clk 0:02:58.6]} 8. Bd3 {[%clk
0:02:57]} 8... f5 {[%clk 0:02:58.3]} 9. exf6 {[%clk 0:02:56.4]} 9... Rxf6 {[%clk
0:02:58.4]} 10. Bg5 {[%clk 0:02:44.6]} 10... e5 {[%clk 0:02:58.5]} 11. Qh4
{[%clk 0:02:43.2]} 11... e4 {[%clk 0:02:58.3]} 12. Bxf6 {[%clk 0:02:37.5]} 12...
gxf6 {[%clk 0:02:59.2]} 13. Qxf6 {[%clk 0:02:27.2]} 13... exd3 {[%clk
0:02:54.7]} 14. Qg5+ {[%clk 0:02:25.9]} 14... Kf7 {[%clk 0:02:51.9]} 15. Nf3
{[%clk 0:02:25.3]} 15... Nbc6 {[%clk 0:02:48.9]} 16. cxd3 {[%clk 0:02:23.2]}
16... Bf5 {[%clk 0:02:40.1]} 17. O-O {[%clk 0:02:20.8]} 17... Qg8 {[%clk
0:02:38.1]} 18. dxc5 {[%clk 0:02:02.8]} 18... Qxg5 {[%clk 0:02:34.1]} 19. Nxg5+
{[%clk 0:02:03.7]} 19... Kf6 {[%clk 0:02:32]} 20. Nf3 {[%clk 0:01:55.3]} 20...
Bxd3 {[%clk 0:02:31.8]} 21. Rfe1 {[%clk 0:01:55.5]} 21... Rg8 {[%clk 0:02:29.2]}
22. Nd4 {[%clk 0:01:52.5]} 22... Nxd4 {[%clk 0:02:19.1]} 23. cxd4 {[%clk
0:01:53.4]} 23... Nf5 {[%clk 0:02:15]} 24. Rad1 {[%clk 0:01:32.4]} 24... Bc2
{[%clk 0:02:15]} 25. Rd2 {[%clk 0:01:13.8]} 25... Be4 {[%clk 0:02:14.6]} 26. f3
{[%clk 0:00:44]} 26... Bxf3 {[%clk 0:02:14.1]} 27. Re5 {[%clk 0:00:34.2]} 27...
Be4 {[%clk 0:01:53.7]} 28. Rf2 {[%clk 0:00:33.7]} 28... h5 {[%clk 0:01:50.4]}
29. h3 {[%clk 0:00:32.4]} 29... h4 {[%clk 0:01:49.9]} 30. Kh2 {[%clk 0:00:32.6]}
30... Rg3 {[%clk 0:01:48.7]} 31. Re8 {[%clk 0:00:32.5]} 31... Rxa3 {[%clk
0:01:44.8]} 32. Rb8 {[%clk 0:00:29]} 32... Ke6 {[%clk 0:01:35.4]} 33. Rxb7
{[%clk 0:00:26.6]} 33... Nxd4 {[%clk 0:01:35.3]} 34. Rb8 {[%clk 0:00:18.1]}
34... Rc3 {[%clk 0:01:32.7]} 35. Ra8 {[%clk 0:00:17.3]} 35... Nc6 {[%clk
0:01:30.5]} 36. Rh8 {[%clk 0:00:16.6]} 36... Rxc5 {[%clk 0:01:25]} 37. Rh6+
{[%clk 0:00:16.7]} 37... Ke5 {[%clk 0:01:24.6]} 38. Rxh4 {[%clk 0:00:17.4]}
38... a5 {[%clk 0:01:24.6]} 39. Ra2 {[%clk 0:00:16.4]} 39... Nb4 {[%clk
0:01:23.9]} 40. Ra3 {[%clk 0:00:15.9]} 40... Rc2 {[%clk 0:01:23.2]} 41. Rg4
{[%clk 0:00:15.4]} 41... Ra2 {[%clk 0:01:17.5]} 42. Rgg3 {[%clk 0:00:13.1]}
42... d4 {[%clk 0:01:03.2]} 43. Rg5+ {[%clk 0:00:09.6]} 43... Kf4 {[%clk
0:01:02.2]} 44. Rgxa5 {[%clk 0:00:09.3]} 44... Rxa3 {[%clk 0:01:01.9]} 45. Rxa3
{[%clk 0:00:10.2]} 45... d3 {[%clk 0:01:02.4]} 46. Ra1 {[%clk 0:00:05.5]} 46...
d2 {[%clk 0:01:01.9]} 47. Rd1 {[%clk 0:00:05.5]} 47... Ke3 {[%clk 0:01:02]} 48.
g4 {[%clk 0:00:04.8]} 48... Bc2 {[%clk 0:01:00.3]} 49. Rxd2 {[%clk 0:00:04.8]}
49... Kxd2 {[%clk 0:01:01.2]} 50. Kg3 {[%clk 0:00:05.5]} 50... Ke3 {[%clk
0:01:01.9]} 51. h4 {[%clk 0:00:04.6]} 51... Ke4 {[%clk 0:01:01.7]} 52. h5 {[%clk
0:00:04.6]} 52... Ke5 {[%clk 0:01:02]} 53. g5 {[%clk 0:00:04.3]} 53... Nd5
{[%clk 0:00:59.1]} 54. g6 {[%clk 0:00:03.5]} 54... Kf6 {[%clk 0:00:59.2]} 55.
Kg4 {[%clk 0:00:03.9]} 55... Bd1+ {[%clk 0:00:58.8]} 56. Kh4 {[%clk 0:00:04.3]}
56... Ne7 {[%clk 0:00:57.8]} 57. g7 {[%clk 0:00:03.1]} 57... Kxg7 {[%clk
0:00:57.6]} 58. Kg5 {[%clk 0:00:04]} 58... Ng8 {[%clk 0:00:57.6]} 59. Kh4 {[%clk
0:00:03.9]} 59... Kf6 {[%clk 0:00:57.4]} 60. Kg3 {[%clk 0:00:04.4]} 60... Bxh5
{[%clk 0:00:57.2]} 61. Kf2 {[%clk 0:00:05.3]} 61... Ke5 {[%clk 0:00:55.8]} 62.
Ke3 {[%clk 0:00:06.2]} 62... Nf6 {[%clk 0:00:55.2]} 63. Kd3 {[%clk 0:00:07.1]}
63... Ne4 {[%clk 0:00:55]} 64. Kc4 {[%clk 0:00:07.7]} 64... Be8 {[%clk
0:00:55.2]} 65. Kd3 {[%clk 0:00:06.9]} 65... Bb5+ {[%clk 0:00:55]} 66. Ke3
{[%clk 0:00:07]} 66... Ng5 {[%clk 0:00:47.6]} 67. Kf2 {[%clk 0:00:06.7]} 67...
Kf4 {[%clk 0:00:47.2]} 68. Kg2 {[%clk 0:00:06]} 68... Ne4 {[%clk 0:00:45.4]} 69.
Kh3 {[%clk 0:00:06.2]} 69... Kf3 {[%clk 0:00:44.2]} 70. Kh4 {[%clk 0:00:06.5]}
70... Be8 {[%clk 0:00:44.5]} 71. Kh3 {[%clk 0:00:07]} 71... Ng3 {[%clk 0:00:42]}
72. Kh4 {[%clk 0:00:06.7]} 72... Kf4 {[%clk 0:00:42.4]} 73. Kh3 {[%clk
0:00:07.3]} 73... Bc6 {[%clk 0:00:38.3]} 74. Kh4 {[%clk 0:00:07.2]} 74... Bd5
{[%clk 0:00:38.3]} 75. Kh3 {[%clk 0:00:07.4]} 75... Nf5 {[%clk 0:00:38.5]} 76.
Kh2 {[%clk 0:00:07.4]} 76... Kf3 {[%clk 0:00:38.6]} 77. Kh3 {[%clk 0:00:08]}
77... Bc4 {[%clk 0:00:37.8]} 78. Kh2 {[%clk 0:00:08.2]} 78... Kf2 {[%clk
0:00:37.7]} 79. Kh3 {[%clk 0:00:08.3]} 79... Be2 {[%clk 0:00:37.9]} 80. Kh2
{[%clk 0:00:08.4]} 80... Bg4 {[%clk 0:00:37.8]} 81. Kh1 {[%clk 0:00:08.9]} 81...
Ng3+ {[%clk 0:00:33.2]} 82. Kh2 {[%clk 0:00:09.4]} 82... Nf1+ {[%clk 0:00:34.1]}
83. Kh1 {[%clk 0:00:09.7]} 83... Bf3# {[%clk 0:00:35]} 0-1

[Event "Late-Titled-Tuesday-Blitz-September-05-2023"]
[Site "Chess.com"]
[Date "2023.09.05"]
[Round "11"]
[White "laskakid"]
[Black "Mariia89"]
[Result "1-0"]
[WhiteElo "2228"]
[BlackElo "1984"]
[TimeControl "180+1"]
[EndTime "16:06:41 PDT"]
[Termination "laskakid won by checkmate"]

1. d4 {[%clk 0:03:00.9]} 1... Nf6 {[%clk 0:02:29.1]} 2. c4 {[%clk 0:03:00.1]}
2... c5 {[%clk 0:02:29.4]} 3. d5 {[%clk 0:02:59.6]} 3... b5 {[%clk 0:02:30.1]}
4. Qc2 {[%clk 0:02:58.8]} 4... b4 {[%clk 0:02:29.6]} 5. e4 {[%clk 0:02:57.9]}
5... d6 {[%clk 0:02:30.2]} 6. f4 {[%clk 0:02:56.4]} 6... g6 {[%clk 0:02:30.3]}
7. Bd3 {[%clk 0:02:56.2]} 7... Bg7 {[%clk 0:02:30.9]} 8. Nf3 {[%clk 0:02:56.4]}
8... O-O {[%clk 0:02:31.2]} 9. O-O {[%clk 0:02:56.1]} 9... Bg4 {[%clk
0:02:25.1]} 10. Nbd2 {[%clk 0:02:49.7]} 10... Nbd7 {[%clk 0:02:09.7]} 11. Ne1
{[%clk 0:02:31.1]} 11... Nb6 {[%clk 0:02:08.2]} 12. h3 {[%clk 0:02:30.7]} 12...
Bd7 {[%clk 0:02:06.9]} 13. Nef3 {[%clk 0:02:25.2]} 13... a5 {[%clk 0:01:58.6]}
14. Re1 {[%clk 0:02:15.5]} 14... Ne8 {[%clk 0:01:50.3]} 15. Nf1 {[%clk
0:02:11.1]} 15... a4 {[%clk 0:01:46.7]} 16. Rb1 {[%clk 0:02:09.3]} 16... Nc7
{[%clk 0:01:41.7]} 17. a3 {[%clk 0:01:57.8]} 17... Na6 {[%clk 0:01:37]} 18. e5
{[%clk 0:01:47.6]} 18... Qc8 {[%clk 0:01:30.5]} 19. Ng5 {[%clk 0:01:40.9]} 19...
h6 {[%clk 0:01:25.6]} 20. Nf3 {[%clk 0:01:35]} 20... Rb8 {[%clk 0:01:00.8]} 21.
Qe2 {[%clk 0:01:22.5]} 21... Nc7 {[%clk 0:00:58.1]} 22. g4 {[%clk 0:01:03.9]}
22... h5 {[%clk 0:00:31.7]} 23. gxh5 {[%clk 0:00:59.4]} 23... Bf5 {[%clk
0:00:32.1]} 24. hxg6 {[%clk 0:00:52.5]} 24... Bxd3 {[%clk 0:00:31.9]} 25. gxf7+
{[%clk 0:00:49.1]} 25... Rxf7 {[%clk 0:00:32.2]} 26. Qxd3 {[%clk 0:00:48.4]}
26... Qxh3 {[%clk 0:00:30.8]} 27. Re2 {[%clk 0:00:41]} 27... dxe5 {[%clk
0:00:25.2]} 28. Rh2 {[%clk 0:00:36.4]} 28... Qf5 {[%clk 0:00:20]} 29. Qxf5
{[%clk 0:00:27.7]} 29... Rxf5 {[%clk 0:00:20.9]} 30. Ng3 {[%clk 0:00:27.4]}
30... Rbf8 {[%clk 0:00:15.5]} 31. Nxf5 {[%clk 0:00:26.7]} 31... Rxf5 {[%clk
0:00:16.4]} 32. Nxe5 {[%clk 0:00:22.6]} 32... Bxe5 {[%clk 0:00:14.3]} 33. fxe5
{[%clk 0:00:22.3]} 33... Nxc4 {[%clk 0:00:13.7]} 34. Rg2+ {[%clk 0:00:18.6]}
34... Kf7 {[%clk 0:00:13.9]} 35. Rf2 {[%clk 0:00:18.7]} 35... Rxf2 {[%clk
0:00:12.1]} 36. Kxf2 {[%clk 0:00:19]} 36... Nxe5 {[%clk 0:00:09.1]} 37. Bf4
{[%clk 0:00:17.6]} 37... Nd3+ {[%clk 0:00:09.2]} 38. Ke3 {[%clk 0:00:17.4]}
38... Nxf4 {[%clk 0:00:09.7]} 39. Kxf4 {[%clk 0:00:17.8]} 39... Nxd5+ {[%clk
0:00:10.5]} 40. Ke5 {[%clk 0:00:16.7]} 40... e6 {[%clk 0:00:10.8]} 41. Rc1
{[%clk 0:00:14.2]} 41... bxa3 {[%clk 0:00:09.9]} 42. bxa3 {[%clk 0:00:13.8]}
42... Ne7 {[%clk 0:00:05.1]} 43. Rxc5 {[%clk 0:00:12.5]} 43... Ng6+ {[%clk
0:00:06]} 44. Kd6 {[%clk 0:00:12]} 44... Kf6 {[%clk 0:00:06.4]} 45. Ra5 {[%clk
0:00:10.7]} 45... e5 {[%clk 0:00:05.5]} 46. Rxa4 {[%clk 0:00:11]} 46... Kf5
{[%clk 0:00:05.3]} 47. Ra5 {[%clk 0:00:09.8]} 47... Kf4 {[%clk 0:00:04.4]} 48.
Ke6 {[%clk 0:00:08]} 48... e4 {[%clk 0:00:03.5]} 49. Rf5+ {[%clk 0:00:06.5]}
49... Ke3 {[%clk 0:00:03]} 50. Kf6 {[%clk 0:00:05.8]} 50... Nh4 {[%clk
0:00:03.2]} 51. Re5 {[%clk 0:00:05.7]} 51... Nf3 {[%clk 0:00:02.4]} 52. Re8
{[%clk 0:00:04.8]} 52... Kd4 {[%clk 0:00:02.9]} 53. a4 {[%clk 0:00:04.7]} 53...
e3 {[%clk 0:00:03]} 54. a5 {[%clk 0:00:04.7]} 54... Nh4 {[%clk 0:00:01.9]} 55.
a6 {[%clk 0:00:03.7]} 55... Kd3 {[%clk 0:00:01.8]} 56. a7 {[%clk 0:00:03.7]}
56... e2 {[%clk 0:00:02.7]} 57. a8=Q {[%clk 0:00:03.1]} 57... Nf3 {[%clk
0:00:03.6]} 58. Qa6+ {[%clk 0:00:03.1]} 58... Kd2 {[%clk 0:00:03.7]} 59. Qxe2+
{[%clk 0:00:03.1]} 59... Kc1 {[%clk 0:00:03.8]} 60. Qxf3 {[%clk 0:00:03.1]}
60... Kd2 {[%clk 0:00:04.1]} 61. Re2+ {[%clk 0:00:03.3]} 61... Kd1 {[%clk
0:00:04.2]} 62. Qf1# {[%clk 0:00:03.6]} 1-0